[Event "Titled Tuesday Blitz April 05 Early 2022"]
[White "Tasev, Dejan"]
[Black "Chernov, Mikhail"]
[WhiteFideId "936618"]
[BlackFideId "24143170"]
[WhiteElo "2253"]
[BlackElo "2189"]
[Result "0-1"]
[Round "11"]
[TimeControl "180+1"]
[Date "2022.04.05"]
[WhiteClock "0:00:16"]
[BlackClock "0:00:06"]

1. e4 {[%clk 0:03:00]}  c5 {[%clk 0:03:00]} 2. Nf3 {[%clk 0:03:00]}  Nc6 {[%clk 0:03:00]} 3. Nc3 {[%clk 0:03:00]}  d6 {[%clk 0:03:00]} 4. d4 {[%clk 0:03:00]}  cxd4 {[%clk 0:03:01]} 5. Nxd4 {[%clk 0:03:01]}  Nf6 {[%clk 0:03:02]} 6. Bc4 {[%clk 0:03:00]}  e6 {[%clk 0:03:02]} 7. Bb3 {[%clk 0:03:01]}  a6 {[%clk 0:03:03]} 8. Be3 {[%clk 0:03:01]}  Qc7 {[%clk 0:03:04]} 9. f3 {[%clk 0:03:01]}  Na5 {[%clk 0:03:04]} 10. Qd2 {[%clk 0:03:01]}  b5 {[%clk 0:03:04]} 11. O-O {[%clk 0:02:58]}  Be7 {[%clk 0:02:59]} 12. Rfd1 {[%clk 0:02:57]}  Nc4 {[%clk 0:02:49]} 13. Bxc4 {[%clk 0:02:56]}  Qxc4 {[%clk 0:02:49]} 14. a3 {[%clk 0:02:55]}  O-O {[%clk 0:02:49]} 15. Rac1 {[%clk 0:02:54]}  Bb7 {[%clk 0:02:38]} 16. Nb3 {[%clk 0:02:54]}  b4 {[%clk 0:02:25]} 17. axb4 {[%clk 0:02:48]}  Qxb4 {[%clk 0:02:26]} 18. Ra1 {[%clk 0:02:39]}  Bc6 {[%clk 0:02:13]} 19. Qd4 {[%clk 0:02:20]}  Qxd4 {[%clk 0:01:58]} 20. Bxd4 {[%clk 0:02:15]}  Rfd8 {[%clk 0:01:48]} 21. Na5 {[%clk 0:02:13]}  Be8 {[%clk 0:01:46]} 22. Nc4 {[%clk 0:01:50]}  Rab8 {[%clk 0:01:25]} 23. b3 {[%clk 0:01:40]}  d5 {[%clk 0:01:18]} 24. exd5 {[%clk 0:01:38]}  Nxd5 {[%clk 0:01:17]} 25. Nxd5 {[%clk 0:01:32]}  Rxd5 {[%clk 0:01:18]} 26. Bf2 {[%clk 0:01:26]}  Bf6 {[%clk 0:01:11]} 27. Rab1 {[%clk 0:01:19]}  Rbd8 {[%clk 0:01:04]} 28. Rxd5 {[%clk 0:01:18]}  Rxd5 {[%clk 0:01:05]} 29. Ne3 {[%clk 0:00:58]}  Rd2 {[%clk 0:01:01]} 30. Rd1 {[%clk 0:00:58]}  Rxd1+ {[%clk 0:00:55]} 31. Nxd1 {[%clk 0:00:57]}  Kf8 {[%clk 0:00:53]} 32. Bc5+ {[%clk 0:00:56]}  Be7 {[%clk 0:00:53]} 33. Bxe7+ {[%clk 0:00:55]}  Kxe7 {[%clk 0:00:54]} 34. Kf2 {[%clk 0:00:56]}  Kd6 {[%clk 0:00:53]} 35. Ke3 {[%clk 0:00:56]}  Kc5 {[%clk 0:00:53]} 36. Kd3 {[%clk 0:00:53]}  Kb4 {[%clk 0:00:51]} 37. Kd4 {[%clk 0:00:49]}  Bc6 {[%clk 0:00:38]} 38. Ke5 {[%clk 0:00:43]}  a5 {[%clk 0:00:29]} 39. Kd4 {[%clk 0:00:42]}  f6 {[%clk 0:00:28]} 40. Kd3 {[%clk 0:00:42]}  e5 {[%clk 0:00:25]} 41. Nc3 {[%clk 0:00:37]}  f5 {[%clk 0:00:18]} 42. Kd2 {[%clk 0:00:36]}  Kc5 {[%clk 0:00:17]} 43. Nd1 {[%clk 0:00:35]}  g5 {[%clk 0:00:17]} 44. Ne3 {[%clk 0:00:32]}  e4 {[%clk 0:00:15]} 45. fxe4 {[%clk 0:00:28]}  Bxe4 {[%clk 0:00:15]} 46. g3 {[%clk 0:00:28]}  h5 {[%clk 0:00:12]} 47. h4 {[%clk 0:00:27]}  gxh4 {[%clk 0:00:11]} 48. gxh4 {[%clk 0:00:28]}  f4 {[%clk 0:00:11]} 49. Nd1 {[%clk 0:00:28]}  Kd4 {[%clk 0:00:10]} 50. Nf2 {[%clk 0:00:28]}  Bd5 {[%clk 0:00:09]} 51. c3+ {[%clk 0:00:28]}  Ke5 {[%clk 0:00:08]} 52. Kc2 {[%clk 0:00:29]}  f3 {[%clk 0:00:09]} 53. c4 {[%clk 0:00:28]}  Bb7 {[%clk 0:00:08]} 54. Kd3 {[%clk 0:00:29]}  Kf4 {[%clk 0:00:08]} 55. Kd2 {[%clk 0:00:26]}  Bc6 {[%clk 0:00:08]} 56. Nd3+ {[%clk 0:00:25]}  Kg3 {[%clk 0:00:08]} 57. Ke1 {[%clk 0:00:25]}  Kxh4 {[%clk 0:00:07]} 58. Kf2 {[%clk 0:00:24]}  Bb7 {[%clk 0:00:06]} 59. c5 {[%clk 0:00:24]}  Kg4 {[%clk 0:00:06]} 60. Ne5+ {[%clk 0:00:22]}  Kf4 {[%clk 0:00:06]} 61. Nc4 {[%clk 0:00:23]}  h4 {[%clk 0:00:04]} 62. Nxa5 {[%clk 0:00:23]}  h3 {[%clk 0:00:04]} 63. Nxb7 {[%clk 0:00:17]}  h2 {[%clk 0:00:05]} 64. c6 {[%clk 0:00:16]}  h1=Q {[%clk 0:00:06]} 0-1


[Site "https://www.chess.com"]

[Event "Titled Tuesday Blitz April 05 Early 2022"]
[White "volunteers1998"]
[Black "Biletskiy, Danylo"]
[BlackFideId "14155419"]
[WhiteElo "2336"]
[BlackElo "2087"]
[Result "0-1"]
[Round "11"]
[TimeControl "180+1"]
[Date "2022.04.05"]
[WhiteClock "0:00:01"]
[BlackClock "0:01:32"]

1. e4 {[%clk 0:03:00]}  d5 {[%clk 0:02:59]} 2. exd5 {[%clk 0:02:59]}  Nf6 {[%clk 0:02:59]} 3. Bb5+ {[%clk 0:02:57]}  Bd7 {[%clk 0:02:59]} 4. Bc4 {[%clk 0:02:55]}  Bg4 {[%clk 0:02:58]} 5. f3 {[%clk 0:02:54]}  Bc8 {[%clk 0:02:58]} 6. Nc3 {[%clk 0:02:52]}  Nbd7 {[%clk 0:02:57]} 7. d4 {[%clk 0:02:49]}  a6 {[%clk 0:02:57]} 8. Nge2 {[%clk 0:02:45]}  b5 {[%clk 0:02:57]} 9. Bb3 {[%clk 0:02:42]}  Nb6 {[%clk 0:02:57]} 10. Nf4 {[%clk 0:02:36]}  Bb7 {[%clk 0:02:57]} 11. O-O {[%clk 0:02:29]}  Nbxd5 {[%clk 0:02:54]} 12. Nfxd5 {[%clk 0:02:22]}  Nxd5 {[%clk 0:02:53]} 13. Nxd5 {[%clk 0:02:21]}  Bxd5 {[%clk 0:02:54]} 14. Bxd5 {[%clk 0:02:15]}  Qxd5 {[%clk 0:02:53]} 15. a4 {[%clk 0:02:16]}  b4 {[%clk 0:02:52]} 16. Qd3 {[%clk 0:02:08]}  e6 {[%clk 0:02:50]} 17. Re1 {[%clk 0:02:03]}  Bd6 {[%clk 0:02:47]} 18. Qe4 {[%clk 0:01:57]}  O-O {[%clk 0:02:45]} 19. Qxd5 {[%clk 0:01:52]}  exd5 {[%clk 0:02:46]} 20. Bg5 {[%clk 0:01:46]}  f6 {[%clk 0:02:45]} 21. Bd2 {[%clk 0:01:42]}  Kf7 {[%clk 0:02:44]} 22. g3 {[%clk 0:01:35]}  a5 {[%clk 0:02:43]} 23. Kf2 {[%clk 0:01:31]}  Ra6 {[%clk 0:02:42]} 24. Re2 {[%clk 0:01:26]}  Rc6 {[%clk 0:02:42]} 25. Be1 {[%clk 0:01:18]}  Rc4 {[%clk 0:02:39]} 26. Rd1 {[%clk 0:01:12]}  Rb8 {[%clk 0:02:39]} 27. b3 {[%clk 0:01:10]}  Rc6 {[%clk 0:02:32]} 28. Rd3 {[%clk 0:00:55]}  Re8 {[%clk 0:02:22]} 29. Rxe8 {[%clk 0:00:52]}  Kxe8 {[%clk 0:02:23]} 30. Re3+ {[%clk 0:00:45]}  Kd7 {[%clk 0:02:23]} 31. Re2 {[%clk 0:00:46]}  Be7 {[%clk 0:02:21]} 32. Ke3 {[%clk 0:00:43]}  f5 {[%clk 0:02:17]} 33. Kd3 {[%clk 0:00:41]}  Bf6 {[%clk 0:02:16]} 34. Bd2 {[%clk 0:00:36]}  g6 {[%clk 0:02:09]} 35. Bf4 {[%clk 0:00:32]}  Rc3+ {[%clk 0:02:06]} 36. Kd2 {[%clk 0:00:33]}  Bxd4 {[%clk 0:02:06]} 37. Be5 {[%clk 0:00:27]}  Bxe5 {[%clk 0:02:02]} 38. Rxe5 {[%clk 0:00:27]}  Kd6 {[%clk 0:02:00]} 39. f4 {[%clk 0:00:25]}  c5 {[%clk 0:01:54]} 40. Re8 {[%clk 0:00:23]}  c4 {[%clk 0:01:54]} 41. bxc4 {[%clk 0:00:19]}  dxc4 {[%clk 0:01:52]} 42. Ra8 {[%clk 0:00:19]}  Ra3 {[%clk 0:01:49]} 43. Rxa5 {[%clk 0:00:15]}  Ra2 {[%clk 0:01:49]} 44. Kc1 {[%clk 0:00:10]}  Kc6 {[%clk 0:01:38]} 45. Ra7 {[%clk 0:00:08]}  c3 {[%clk 0:01:37]} 46. Kb1 {[%clk 0:00:07]}  Rb2+ {[%clk 0:01:37]} 47. Kc1 {[%clk 0:00:06]}  h6 {[%clk 0:01:35]} 48. Ra6+ {[%clk 0:00:04]}  Kc5 {[%clk 0:01:31]} 49. Rxg6 {[%clk 0:00:02]}  b3 {[%clk 0:01:32]} 50. cxb3 {[%clk 0:00:02]}  Rxh2 {[%clk 0:01:33]} 51. Rf6 {[%clk 0:00:01]}  Kb4 {[%clk 0:01:33]} 52. Rxf5 {[%clk 0:00:01]}  Kxb3 {[%clk 0:01:32]} 0-1